bitfinex/quotes_BTCUSD_20220226
["timestamp","ask_amount","ask_price","bid_price","bid_amount"]
[1645861377276,0.30420509,39154.0,39146.0,0.65677929]
[1645861378231,0.3039,39154.0,39146.0,0.65677929]
[1645861378534,0.30520509,39154.0,39146.0,0.65677929]
[1645861379331,0.3049,39154.0,39146.0,0.65677929]
[1645861379531,0.3049,39154.0,39147.0,0.32351465]
[1645861379731,0.11860509,39154.0,39147.0,0.32351465]
[1645861379931,0.11760509,39154.0,39146.0,0.65677929]
[1645861380332,0.11760509,39154.0,39146.0,0.32351465]
[1645861380532,0.1173,39154.0,39146.0,0.32351465]
[1645861380733,0.1143,39154.0,39146.0,0.32351465]
[1645861380933,0.11460509,39154.0,39146.0,0.32351465]
[1645861381335,0.11460509,39154.0,39147.0,0.65677929]
[1645861381536,0.11460509,39154.0,39148.0,0.43858603]
[1645861381736,0.1143,39154.0,39149.0,0.33326464]
[1645861381978,0.1143,39154.0,39150.0,0.0512]
[1645861382178,0.1143,39154.0,39151.0,0.33326464]
[1645861382179,0.00030509,39154.0,39151.0,0.33326464]
[1645861382482,0.00030509,39154.0,39151.0,0.0512]
[1645861382977,0.23109766,39158.0,39151.0,0.0512]
[1645861383178,0.00030509,39154.0,39151.0,0.0512]
[1645861384180,0.23109766,39158.0,39151.0,0.0512]
[1645861384380,0.00030509,39154.0,39151.0,0.0512]
[1645861384581,0.00030509,39154.0,39151.0,0.0522]
[1645861385183,0.00030509,39154.0,39152.0,0.33326464]
[1645861385382,0.23109766,39158.0,39151.0,0.0522]
[1645861385623,0.00030509,39154.0,39151.0,0.0522]
[1645861385828,0.00030509,39154.0,39151.0,0.0512]
[1645861386623,0.001,39154.0,39151.0,0.0512]
[1645861386824,0.00130509,39154.0,39151.0,0.0512]
[1645861387923,0.23109766,39158.0,39151.0,0.24757976]
[1645861388125,0.00030509,39154.0,39151.0,0.24757976]
[1645861388323,0.00030509,39154.0,39151.0,0.0512]
[1645861388523,0.15136272,39158.0,39151.0,0.0512]
[1645861388725,0.001,39154.0,39151.0,0.0512]
[1645861388923,0.001,39154.0,39148.0,0.25]
[1645861389976,0.2354495,39152.0,39148.0,0.25]
[1645861395826,0.15540947,39152.0,39148.0,0.25]
[1645861396889,0.15540947,39152.0,39144.0,0.00032391]
[1645861396890,0.32581898,39147.0,39144.0,0.00032391]
[1645861397383,0.32581898,39147.0,39143.0,0.002]
[1645861397582,0.32581898,39147.0,39144.0,0.0003239]
[1645861397780,0.18857886,39146.0,39144.0,0.0003239]
[1645861398282,0.52095746,39146.0,39144.0,0.0003239]
[1645861398480,0.3323786,39145.0,39144.0,0.0003239]
[1645861398682,0.3323786,39145.0,39137.0,6e-05]
[1645861398880,0.3323786,39145.0,39143.0,0.0003239]
[1645861399080,0.23360857,39144.0,39143.0,0.0003239]
[1645861399883,0.23360857,39144.0,39137.0,6e-05]
[1645861400080,0.23360857,39144.0,39142.0,0.00032021]
[1645861400726,0.23660857,39144.0,39142.0,0.00032021]
[1645861401126,0.23660857,39144.0,39137.0,6e-05]
[1645861401327,0.23660857,39144.0,39141.0,0.00032168]
[1645861401926,0.23360857,39144.0,39141.0,0.00032168]
[1645861402326,0.23360857,39144.0,39137.0,6e-05]
[1645861402529,0.56598717,39144.0,39141.0,0.00032168]
[1645861402827,0.23460857,39144.0,39141.0,0.00032168]
[1645861403427,0.56698717,39144.0,39137.0,6e-05]
[1645861403628,0.23460857,39144.0,39141.0,0.0003035]
[1645861403827,0.23360857,39144.0,39141.0,0.0003035]
[1645861404677,0.23360857,39144.0,39141.0,0.001]
[1645861404877,0.23360857,39144.0,39141.0,0.00130353]
[1645861405875,0.23360857,39144.0,39141.0,0.001]
[1645861406075,0.23360857,39144.0,39141.0,0.00030353]
[1645861406676,0.23560857,39144.0,39141.0,0.00030353]
[1645861407075,0.23560857,39144.0,39137.0,6e-05]
[1645861407282,0.3323786,39143.0,39141.0,0.00030475]
[1645861407479,0.56798717,39144.0,39141.0,0.00030475]
[1645861407677,0.23560857,39144.0,39141.0,0.00030475]
[1645861408128,0.23360857,39144.0,39141.0,0.25030475]
[1645861408329,0.23360857,39144.0,39141.0,0.25]
[1645861408529,0.23360857,39144.0,39141.0,0.25030534]
[1645861408731,0.23360857,39144.0,39141.0,0.25130534]
[1645861409529,0.23360857,39144.0,39141.0,0.251]
[1645861409728,0.23360857,39144.0,39141.0,0.25130534]
[1645861409932,0.23360857,39144.0,39141.0,0.25030534]
[1645861410333,0.379889,39143.0,39141.0,0.25030534]
[1645861410533,0.379889,39142.0,39141.0,0.25030534]
[1645861410731,0.23460857,39144.0,39141.0,0.25]
[1645861411534,0.3323786,39143.0,39141.0,0.25]
[1645861411980,0.33207123,39143.0,39141.0,0.25]
[1645861412778,0.379889,39142.0,39141.0,0.25]
[1645861413179,0.002,39143.0,39141.0,0.25]
[1645861413378,0.379889,39142.0,39141.0,0.25]
[1645861413581,0.002,39143.0,39141.0,0.25]
[1645861413980,0.21684678,39144.0,39141.0,0.25]
[1645861414780,0.21884678,39144.0,39141.0,0.25]
[1645861415628,0.379889,39143.0,39141.0,0.25030517]
[1645861415832,0.21884678,39144.0,39141.0,0.25030517]
[1645861416029,0.21684678,39144.0,39141.0,0.25030517]
[1645861416730,0.21984678,39144.0,39141.0,0.25]
[1645861416930,0.21984678,39144.0,39141.0,0.25030517]
[1645861417836,0.21984678,39144.0,39141.0,0.25]
[1645861418030,0.21684678,39144.0,39141.0,0.25030516]
[1645861418831,0.32581898,39147.0,39141.0,0.25030516]
[1645861419032,0.32581898,39147.0,39141.0,0.25]
[1645861419232,0.32581898,39147.0,39141.0,0.25030516]
[1645861419885,0.22935085,39146.0,39141.0,0.25030516]
[1645861420286,0.22935085,39146.0,39141.0,0.25]
[1645861420488,0.22935085,39146.0,39142.0,0.00030516]
[1645861420884,0.379889,39145.0,39142.0,0.00030516]
[1645861421086,0.22935085,39146.0,39142.0,0.00030516]
[1645861421285,0.379889,39145.0,39142.0,0.00030516]
[1645861421485,0.379889,39145.0,39141.0,0.251]
[1645861421683,0.22935085,39146.0,39142.0,0.00030516]
[1645861422585,0.22935085,39146.0,39141.0,0.25]
[1645861422886,0.56172945,39146.0,39142.0,0.00030516]
[1645861423133,0.22935085,39146.0,39142.0,0.00030516]
[1645861423930,0.22935085,39146.0,39141.0,0.25]
[1645861424132,0.22935085,39146.0,39142.0,0.00030516]
[1645861425135,0.22935085,39146.0,39141.0,0.25]
[1645861425334,0.22935085,39146.0,39142.0,0.00030516]
[1645861426239,0.22935085,39146.0,39141.0,0.25]
[1645861426435,0.22935085,39146.0,39142.0,0.00030516]
[1645861427485,0.95,39145.0,39141.0,0.24938969]
[1645861427685,0.95,39145.0,39142.0,0.00030516]
[1645861428084,0.3323786,39144.0,39142.0,0.00030516]
[1645861428686,0.3363786,39144.0,39141.0,0.24938969]
[1645861429889,0.3323786,39144.0,39141.0,0.24938969]
[1645861430736,0.3333786,39144.0,39141.0,0.24938969]
[1645861431932,0.3323786,39144.0,39141.0,0.24938969]
[1645861432733,0.3353786,39144.0,39141.0,0.24938969]
[1645861433934,0.3323786,39144.0,39141.0,0.24938969]
[1645861434781,0.3333786,39144.0,39141.0,0.24938969]
[1645861435984,0.3323786,39144.0,39141.0,0.24938969]
[1645861436784,0.3353786,39144.0,39141.0,0.24938969]
[1645861436985,0.003,39144.0,39141.0,0.24938969]
[1645861437185,0.87295997,39145.0,39141.0,0.24938969]
[1645861437786,0.33148934,39144.0,39141.0,0.24938969]
[1645861438832,0.33248934,39144.0,39141.0,0.24938969]
[1645861439934,0.33148934,39144.0,39141.0,0.24938969]
[1645861440233,0.56084019,39146.0,39141.0,0.24938969]
[1645861441032,0.22935085,39146.0,39141.0,0.24938969]
[1645861441235,0.44469332,39146.0,39141.0,0.24938969]
[1645861441434,0.77618266,39146.0,39141.0,0.24938969]
[1645861442880,0.77918266,39146.0,39141.0,0.24938969]
[1645861443180,0.21534247,39145.0,39141.0,0.24938969]
[1645861444185,0.77618266,39146.0,39141.0,0.24938969]
[1645861444381,0.21534247,39145.0,39141.0,0.24938969]
[1645861446539,0.77618266,39146.0,39141.0,0.24938969]
[1645861446741,0.003,39145.0,39141.0,0.24938969]
[1645861447936,0.44469332,39146.0,39141.0,0.24938969]
[1645861450893,0.44769332,39146.0,39141.0,0.24938969]
[1645861451092,0.23235085,39146.0,39141.0,0.24938969]
[1645861451990,0.22935085,39146.0,39141.0,0.24938969]
[1645861455335,0.44469332,39146.0,39141.0,0.24938969]
[1645861456990,0.44569332,39146.0,39141.0,0.24938969]
[1645861457187,0.23035085,39146.0,39141.0,0.24938969]
[1645861457491,0.001,39146.0,39141.0,0.24938969]
[1645861458087,0.32581898,39147.0,39141.0,0.24938969]
[1645861460837,0.32581898,39147.0,39141.0,0.25038969]
[1645861462039,0.32581898,39147.0,39141.0,0.24938969]
[1645861462342,0.24577895,39147.0,39141.0,0.24938969]
[1645861462839,0.19326049,39143.0,39141.0,0.24938969]
[1645861465095,0.19326049,39143.0,39137.0,0.37749376]
[1645861465096,0.32620775,39140.0,39137.0,6e-05]
[1645861465696,0.07620775,39140.0,39137.0,6e-05]
[1645861466499,0.07620775,39140.0,39137.0,0.51554866]
[1645861466700,0.07620775,39140.0,39137.0,0.89298242]
[1645861466898,0.07620775,39140.0,39137.0,0.89498242]
[1645861468338,0.07620775,39140.0,39137.0,0.56266884]
[1645861468536,0.07620775,39140.0,39138.0,0.4704232]
[1645861468736,0.07620775,39140.0,39138.0,0.80273678]
[1645861468937,0.07620775,39140.0,39138.0,0.37743376]
[1645861469137,0.07620775,39140.0,39138.0,0.47042284]
[1645861469338,0.07620775,39140.0,39137.0,0.37749376]
[1645861469536,0.07620775,39140.0,39138.0,0.37743376]
[1645861469939,0.07620775,39140.0,39138.0,0.47043655]
[1645861470944,0.07620775,39140.0,39138.0,0.47243655]
[1645861471141,0.07620775,39140.0,39138.0,0.37943376]
[1645861472194,0.07620775,39140.0,39138.0,0.37743376]
[1645861472394,0.07620775,39140.0,39138.0,0.47042687]
[1645861472793,0.07620775,39140.0,39138.0,0.47242687]
[1645861472990,0.07620775,39140.0,39138.0,0.37943376]
[1645861473890,0.07620775,39140.0,39139.0,0.32381255]
[1645861474891,0.07620775,39140.0,39139.0,0.32581255]
[1645861475092,0.07620775,39140.0,39139.0,0.002]
[1645861476137,0.07620775,39140.0,39138.0,0.0003465]
[1645861476738,0.07620775,39140.0,39137.0,0.70980734]
[1645861476936,0.07620775,39140.0,39137.0,0.71015385]
[1645861477338,0.07620775,39140.0,39137.0,0.37784027]
[1645861477635,0.07620775,39140.0,39138.0,0.46668372]
[1645861477839,0.07620775,39140.0,39138.0,0.37743376]
[1645861478236,0.07620775,39140.0,39138.0,0.49795]
[1645861479237,0.07620775,39140.0,39139.0,0.32380732]
[1645861479887,0.07620775,39140.0,39138.0,0.32380732]
[1645861481887,0.07620775,39140.0,39139.0,0.32380732]
[1645861482487,0.07530685,39140.0,39139.0,0.32380732]
[1645861482890,0.07530685,39140.0,39138.0,0.32415382]
[1645861484038,0.07530685,39140.0,39138.0,0.32380732]
[1645861484939,0.07530685,39140.0,39138.0,0.32580732]
[1645861486138,0.07530685,39140.0,39138.0,0.32380732]
[1645861486986,0.07530685,39140.0,39139.0,0.32380732]
[1645861488187,0.07499934,39140.0,39139.0,0.32380732]
[1645861488989,0.18861436,39144.0,39139.0,0.32580732]
[1645861490189,0.18861436,39144.0,39139.0,0.32380732]
[1645861491938,0.18861436,39144.0,39140.0,0.32380732]
[1645861492739,0.00034645,39145.0,39140.0,0.32380732]
[1645861493141,0.00034645,39145.0,39141.0,0.6552116]
[1645861493345,0.00034645,39145.0,39142.0,0.0512]
[1645861493545,0.24577895,39147.0,39143.0,0.70883804]
[1645861493746,0.24577895,39147.0,39145.0,0.54734844]
[1645861493942,0.24577895,39147.0,39146.0,0.0512]
[1645861494142,0.24577895,39147.0,39146.0,0.81756]
[1645861495189,0.24577895,39147.0,39146.0,1.14128553]
[1645861495389,0.24577895,39147.0,39146.0,1.14896428]
[1645861495588,0.24577895,39147.0,39146.0,0.81756]
[1645861498638,0.24577895,39147.0,39146.0,1.14896428]
[1645861499042,0.24577895,39147.0,39146.0,1.15096428]
[1645861499836,0.24577895,39147.0,39146.0,1.06956]
[1645861500236,0.24577895,39147.0,39146.0,1.06756]
[1645861501643,0.24577895,39147.0,39146.0,1.01636]
[1645861501901,0.24577895,39147.0,39146.0,1.34776428]
[1645861502098,0.24577895,39147.0,39146.0,1.01636]
[1645861503903,0.24577895,39147.0,39146.0,1.34776428]
[1645861504904,0.24577895,39147.0,39146.0,1.34976428]
[1645861505303,0.24577895,39147.0,39146.0,1.67342362]
[1645861506142,0.24577895,39147.0,39146.0,1.67137375]
[1645861506953,0.24577895,39147.0,39146.0,1.72457375]
[1645861507544,0.00032365,39148.0,39147.0,1.2]
[1645861507745,0.00026365,39148.0,39147.0,1.58340306]
[1645861507946,0.1173,39158.0,39147.0,1.58340306]
[1645861508146,0.1173,39158.0,39149.0,0.06386718]
[1645861508147,0.11715606,39158.0,39149.0,0.06386718]
[1645861508345,0.11715606,39158.0,39150.0,0.38340306]
[1645861508546,0.11715606,39158.0,39154.0,0.17888034]
[1645861508746,0.6131,39163.0,39154.0,0.17888034]
[1645861508946,0.4018,39163.0,39154.0,0.17888034]
[1645861509246,0.4018,39163.0,39158.0,0.28072964]
[1645861509492,0.01427575,39154.0,39150.0,0.38440306]
[1645861509688,0.01427575,39154.0,39150.0,0.0522]
[1645861509890,0.01427575,39154.0,39151.0,1.1007442]
[1645861510088,0.01427575,39154.0,39151.0,1.1519442]
[1645861510589,0.01444759,39154.0,39151.0,1.1519442]
[1645861510788,0.01444759,39154.0,39151.0,0.81746]
[1645861511590,0.01427575,39154.0,39151.0,0.81746]
[1645861511788,0.01462216,39154.0,39151.0,0.81746]
[1645861512188,0.01462216,39154.0,39152.0,0.3344842]
[1645861512389,0.01462216,39154.0,39151.0,0.81746]
[1645861512788,0.01427575,39154.0,39151.0,0.81746]
[1645861512989,0.01462216,39154.0,39151.0,0.81846]
[1645861514037,0.01427575,39154.0,39151.0,0.81846]
[1645861514237,0.01462216,39154.0,39151.0,0.81746]
[1645861514737,0.12583487,39157.0,39152.0,0.3]
[1645861515538,0.12583487,39157.0,39152.0,0.63195026]
[1645861515938,0.12583487,39157.0,39152.0,0.3]
[1645861516338,0.12583487,39157.0,39152.0,0.63195026]
[1645861516986,0.12583487,39157.0,39152.0,0.63295026]
[1645861517290,0.36142627,39165.0,39152.0,0.63295026]
[1645861517487,0.33588627,39165.0,39152.0,0.63295026]
[1645861517688,0.1203,39165.0,39152.0,0.69681593]
[1645861517894,0.1203,39165.0,39153.0,0.0512]
[1645861518087,0.1203,39165.0,39154.0,0.33195026]
[1645861518287,0.1203,39165.0,39161.0,0.17426497]
[1645861518489,0.2153,39167.0,39161.0,0.17426497]
[1645861518687,0.2153,39167.0,39161.0,0.23811339]
[1645861520643,0.2153,39167.0,39161.0,0.06384842]
[1645861520839,0.2153,39167.0,39160.0,0.0512]
[1645861521839,0.1854989,39161.0,39160.0,0.0512]
[1645861522343,0.1854989,39161.0,39155.0,0.0512]
[1645861522540,0.1854989,39161.0,39156.0,0.76617]
[1645861523940,0.1854989,39161.0,39156.0,1.01617]
[1645861523941,0.00032974,39160.0,39156.0,1.01617]
[1645861524146,0.379889,39159.0,39156.0,1.01617]
[1645861524391,0.431089,39159.0,39156.0,1.01617]
[1645861525290,0.43141875,39159.0,39156.0,1.01617]
[1645861525891,0.431089,39159.0,39156.0,1.01617]
[1645861526293,0.43141875,39159.0,39156.0,1.01617]
[1645861527093,0.431089,39159.0,39156.0,1.01617]
[1645861527497,0.43141312,39159.0,39156.0,1.01617]
[1645861527893,0.43141312,39159.0,39156.0,1.01117]
[1645861528342,0.431089,39159.0,39156.0,1.01117]
[1645861528543,0.43141312,39159.0,39156.0,1.01117]
[1645861529643,0.431089,39159.0,39156.0,1.01117]
[1645861529844,0.43141312,39159.0,39156.0,1.01117]
[1645861530843,0.431089,39159.0,39156.0,1.0107207]
[1645861531043,0.4314135,39159.0,39156.0,1.0107207]
[1645861531895,0.431089,39159.0,39156.0,1.0107207]
[1645861532294,0.4314135,39159.0,39156.0,1.0107207]
[1645861533196,0.7779,39158.0,39156.0,1.0107207]
[1645861533396,0.379889,39157.0,39156.0,1.0107207]
[1645861534197,0.379889,39158.0,39156.0,1.0107207]
[1645861534597,0.38021424,39158.0,39156.0,1.0107207]
[1645861535499,0.379889,39158.0,39156.0,1.0107207]
[1645861537439,0.71183926,39157.0,39156.0,1.0107207]
[1645861538539,0.92742553,39157.0,39156.0,1.0107207]
[1645861538742,0.59547527,39157.0,39156.0,1.0107207]
[1645861539040,0.379889,39157.0,39156.0,1.0107207]
[1645861539495,0.379889,39157.0,39156.0,0.43490455]
[1645861541197,0.379889,39157.0,39156.0,0.43448949]
[1645861544045,0.71515048,39157.0,39156.0,0.43448949]
[1645861544849,0.379889,39157.0,39156.0,0.43448949]
[1645861549489,0.379889,39157.0,39156.0,0.43403999]
[1645861560452,0.59551382,39157.0,39156.0,0.43403999]
[1645861562690,0.59263499,39157.0,39156.0,0.43403999]
[1645861563295,1.2,39156.0,39147.0,0.21575239]
[1645861563496,0.6432169,39155.0,39145.0,0.00032526]
[1645861563698,0.21560546,39153.0,39145.0,0.00032526]
[1645861563893,0.431072,39152.0,39145.0,0.00032526]
[1645861564094,0.64667746,39152.0,39145.0,0.00032526]
[1645861564294,0.18326621,39151.0,39142.0,0.21575239]
[1645861564493,0.431072,39150.0,39142.0,0.21575239]
[1645861564695,0.431072,39150.0,39145.0,0.00015354]
[1645861565094,0.432072,39150.0,39145.0,0.00015354]
[1645861565294,0.43176462,39150.0,39145.0,0.00015354]
[1645861565494,0.43176462,39150.0,39143.0,0.21575239]
[1645861565740,0.43176462,39150.0,39145.0,0.00015354]
[1645861566345,0.43076462,39150.0,39145.0,0.00015354]
[1645861566743,0.43076462,39150.0,39143.0,0.21575239]
[1645861566944,0.43076462,39150.0,39145.0,0.00033616]
[1645861567144,0.43276462,39150.0,39145.0,0.00033616]
[1645861568044,0.43276462,39150.0,39143.0,0.21575239]
[1645861568245,0.43076462,39150.0,39145.0,0.00033616]
[1645861569147,0.43076462,39150.0,39143.0,0.21575239]
[1645861569148,0.43276462,39150.0,39143.0,0.21575239]
[1645861569389,0.64837008,39150.0,39145.0,0.00033616]
[1645861569790,0.00014524,39144.0,39143.0,0.21584079]
[1645861569992,0.59258403,39144.0,39142.0,0.21584079]
[1645861570294,0.59258403,39144.0,39141.0,0.21584079]
[1645861570991,0.59258403,39144.0,39139.0,0.26968587]
[1645861570992,0.59258403,39144.0,39139.0,0.21584079]
[1645861571390,0.59258403,39144.0,39138.0,0.21584079]
[1645861571595,0.0512,39143.0,39138.0,0.21584079]
[1645861571791,0.379875,39142.0,39138.0,0.21584079]
[1645861571992,0.431075,39142.0,39139.0,0.01]
[1645861572391,0.431075,39142.0,39139.0,0.22584079]
[1645861572791,0.431075,39142.0,39139.0,0.01]
[1645861572992,0.431075,39142.0,39139.0,0.012]
[1645861574250,0.431075,39142.0,39139.0,0.0123463]
[1645861574545,0.431075,39142.0,39139.0,0.0103463]
[1645861575145,0.432075,39142.0,39139.0,0.01]
[1645861575346,1.209975,39142.0,39139.0,0.0103463]
[1645861575751,0.1,39140.0,39137.0,6e-05]
[1645861575946,0.8779,39138.0,39137.0,6e-05]
[1645861576147,1.307775,39138.0,39137.0,6e-05]
[1645861576446,1.57562893,39138.0,39137.0,6e-05]
[1645861576648,0.79772893,39138.0,39137.0,6e-05]
[1645861576895,0.69772893,39138.0,39137.0,6e-05]
[1645861577493,1.57562893,39138.0,39137.0,6e-05]
[1645861578491,0.23782697,39126.0,39125.0,0.21584079]
[1645861578690,0.9014,39133.0,39128.0,0.05203109]
[1645861578890,0.55317884,39132.0,39128.0,0.05203109]
[1645861579494,1.38227884,39132.0,39128.0,0.05203109]
[1645861579690,1.44620984,39132.0,39128.0,0.05203109]
[1645861581138,1.44720984,39132.0,39128.0,0.05203109]
[1645861581338,0.33364026,39131.0,39128.0,0.05203109]
[1645861581538,0.431075,39130.0,39128.0,0.05203109]
[1645861581738,0.33364026,39129.0,39128.0,0.05203109]
[1645861581937,0.71351526,39129.0,39128.0,0.05203109]
[1645861582143,0.76471526,39129.0,39128.0,0.05203109]
[1645861582339,0.431075,39129.0,39128.0,0.05203109]
[1645861582537,0.76471526,39129.0,39128.0,0.05203109]
[1645861582937,1.208975,39129.0,39128.0,0.05203109]
[1645861583138,1.209975,39129.0,39128.0,0.05203109]
[1645861583338,1.51981526,39129.0,39128.0,0.05203109]
[1645861583539,0.408275,39129.0,39128.0,0.05203109]
[1645861584387,0.407275,39129.0,39128.0,0.05203109]
[1645861585488,0.37988,39131.0,39128.0,0.05203109]
[1645861586288,0.37988,39131.0,39128.0,0.05237706]
[1645861587089,0.38088,39131.0,39128.0,0.05187706]
[1645861587292,0.38088,39131.0,39128.0,0.05153109]
[1645861587489,0.38088,39131.0,39128.0,0.05187706]
[1645861587689,0.001,39131.0,39128.0,0.05187706]
[1645861588343,0.00191232,39132.0,39128.0,0.07741706]
[1645861588548,0.00191232,39132.0,39128.0,0.05153109]
[1645861588843,0.00191232,39132.0,39128.0,0.25605868]
[1645861589644,0.00191232,39132.0,39128.0,0.05153109]
[1645861589849,0.37988,39131.0,39128.0,0.05187706]
[1645861590545,0.20184113,39130.0,39128.0,0.05187706]
[1645861590947,0.20184113,39130.0,39128.0,0.05153109]
[1645861591746,0.37988,39129.0,39128.0,0.05153109]
[1645861593295,0.38088,39129.0,39128.0,0.05153109]
[1645861594497,0.32950767,39129.0,39128.0,0.05153109]
[1645861595000,0.32850767,39129.0,39128.0,0.05153109]
[1645861595196,0.32850767,39129.0,39128.0,0.05353109]
[1645861596436,0.32850767,39129.0,39128.0,0.05153109]
[1645861596637,0.20357667,39130.0,39128.0,0.05153109]
[1645861596838,0.00173554,39130.0,39128.0,0.05153109]
[1645861597241,0.00173554,39130.0,39128.0,0.05353109]
[1645861597840,0.00173554,39130.0,39129.0,0.19791172]
[1645861598643,0.00027978,39130.0,39129.0,0.19791172]
[1645861599790,0.0014799,39130.0,39128.0,0.05187706]
[1645861600389,0.0014799,39130.0,39128.0,0.05153109]
[1645861600988,0.0014799,39130.0,39128.0,0.38361707]
[1645861601189,0.0014799,39130.0,39128.0,0.59945786]
[1645861601991,0.0014799,39130.0,39128.0,0.26737188]
[1645861602189,0.0014799,39130.0,39128.0,0.05153109]
[1645861603241,0.0014799,39130.0,39128.0,0.05453109]
[1645861604241,0.0014799,39130.0,39128.0,0.27037188]
[1645861604441,0.18150448,39136.0,39129.0,0.17357083]
[1645861604644,0.003673,39141.0,39129.0,0.17357083]
[1645861604942,0.37988,39140.0,39129.0,0.17357083]
[1645861605143,0.37988,39140.0,39129.0,0.17657083]
[1645861605541,0.37988,39140.0,39133.0,0.00034595]
[1645861605742,0.1904763,39136.0,39133.0,0.00034595]
[1645861605942,0.37988,39135.0,39133.0,0.00034595]
[1645861606544,0.37988,39135.0,39129.0,0.17357083]
[1645861606745,0.1904763,39136.0,39132.0,0.00034595]
[1645861606991,0.37988,39135.0,39132.0,0.00034595]
[1645861607591,0.37988,39135.0,39129.0,0.39241162]
[1645861607795,0.37988,39135.0,39132.0,0.00034596]
[1645861608894,0.37988,39135.0,39129.0,0.38941162]
[1645861609095,0.1904763,39136.0,39132.0,0.00034596]
[1645861609294,0.1904763,39136.0,39132.0,0.00234596]
[1645861609295,0.379878,39135.0,39132.0,0.00234596]
[1645861610096,0.379878,39135.0,39134.0,0.0015181]
[1645861611247,0.379878,39135.0,39134.0,0.0025181]
[1645861612450,0.379878,39135.0,39134.0,0.0015181]
[1645861613253,0.37981707,39135.0,39134.0,0.0025181]
[1645861614489,0.37981707,39135.0,39134.0,0.0015181]
[1645861614695,0.37981707,39135.0,39134.0,0.00294209]
[1645861615292,0.37981707,39135.0,39134.0,0.00394209]
[1645861616592,0.37981707,39135.0,39134.0,0.00294209]
[1645861617896,0.37981707,39135.0,39134.0,0.21878288]
[1645861620543,0.37981707,39135.0,39134.0,0.00294209]
[1645861621046,0.37981707,39135.0,39134.0,0.21884676]
[1645861621242,0.37981707,39135.0,39134.0,0.21984676]
[1645861622496,0.37981707,39135.0,39134.0,0.21884676]
[1645861623393,0.38081707,39135.0,39134.0,0.21884676]
[1645861625096,0.37981707,39135.0,39134.0,0.21884676]
[1645861626453,0.37981707,39135.0,39134.0,0.00294209]
[1645861627252,0.37981707,39135.0,39134.0,0.00394209]
[1645861628453,0.37981707,39135.0,39134.0,0.00294209]
[1645861629153,0.37981707,39135.0,39134.0,0.27262796]
[1645861629389,0.38081707,39135.0,39134.0,0.27262796]
[1645861629790,0.087601,39135.0,39134.0,0.27262796]
[1645861629989,0.087601,39135.0,39134.0,0.00294209]
[1645861630390,0.087601,39135.0,39134.0,0.27262796]
[1645861630589,0.086601,39135.0,39134.0,0.00294209]
[1645861630794,0.086601,39135.0,39134.0,0.27262796]
[1645861631398,0.087601,39135.0,39134.0,0.27262796]
[1645861632691,0.086601,39135.0,39134.0,0.27262796]
[1645861633355,0.087601,39135.0,39134.0,0.27262796]
[1645861634652,0.086601,39135.0,39134.0,0.27262796]
[1645861635253,0.087601,39135.0,39134.0,0.27262796]
[1645861636657,0.086601,39135.0,39134.0,0.00294209]
[1645861637393,0.086601,39135.0,39134.0,0.00394209]
[1645861638495,0.086601,39135.0,39134.0,0.00294209]
[1645861639199,0.086601,39135.0,39134.0,0.27262796]
[1645861639397,0.086601,39135.0,39134.0,0.00294209]
[1645861639696,0.086601,39135.0,39134.0,0.44312601]
[1645861641350,0.086601,39135.0,39134.0,0.44412601]
[1645861642551,0.086601,39135.0,39134.0,0.44312601]
[1645861643352,0.086601,39135.0,39134.0,0.44512601]
[1645861643954,0.086601,39135.0,39134.0,0.44218392]
[1645861644388,0.08608991,39135.0,39134.0,0.44218392]
[1645861644592,0.08608991,39135.0,39134.0,0.44018392]
[1645861646488,0.08608991,39135.0,39134.0,0.26968587]
[1645861647689,0.08608991,39135.0,39133.0,0.00032393]
[1645861647988,0.379878,39140.0,39133.0,0.00032393]
[1645861648249,0.379878,39140.0,39137.0,0.21596224]
[1645861648451,0.92892475,39140.0,39137.0,0.21596224]
[1645861648650,0.92892475,39140.0,39119.0,0.3140229]
[1645861648651,0.21569221,39139.0,39135.0,0.21596224]
[1645861648851,0.98284781,39138.0,39137.0,0.00032391]
[1645861649055,1.03284781,39138.0,39137.0,0.00032391]
[1645861649555,1.44706088,39138.0,39137.0,0.00032391]
[1645861649751,0.22763381,39132.0,39130.0,0.21696224]
[1645861649951,0.379878,39131.0,39130.0,0.001]
[1645861650653,0.379878,39131.0,39129.0,0.2699528]
[1645861651451,0.380878,39131.0,39129.0,0.2699528]
[1645861652691,0.379878,39131.0,39129.0,0.2699528]
[1645861653294,0.380878,39131.0,39129.0,0.2699528]
[1645861654696,0.379878,39131.0,39129.0,0.2699528]
[1645861655094,0.379878,39131.0,39130.0,0.2159412]
[1645861655494,0.380878,39131.0,39130.0,0.2159412]
[1645861655946,0.380878,39131.0,39129.0,0.27027674]
[1645861656545,0.380878,39131.0,39130.0,0.21593888]
[1645861656742,0.379878,39131.0,39130.0,0.21593888]
[1645861657345,0.380878,39131.0,39130.0,0.21593888]
[1645861657543,0.381179,39131.0,39130.0,0.21593888]
[1645861658542,0.380179,39131.0,39130.0,0.21593888]
[1645861658943,0.59088414,39131.0,39130.0,0.21593888]
[1645861659145,0.59088414,39131.0,39129.0,0.21626282]
[1645861659397,0.59088414,39131.0,39128.0,0.26746997]
[1645861659398,0.59188414,39131.0,39128.0,0.26746997]
[1645861659697,0.59188414,39131.0,39129.0,0.00032394]
[1645861659901,0.4504225,39131.0,39129.0,0.00032394]
[1645861660500,0.4504225,39131.0,39128.0,0.05153109]
[1645861660699,0.4494225,39131.0,39128.0,0.05185504]
[1645861661104,0.00129497,39153.0,39131.0,1.47347845]
[1645861661304,0.21549398,39145.0,39142.0,0.1]
[1645861661503,0.25705066,39152.0,39149.0,0.15]
[1645861661803,0.66900772,39169.0,39156.0,0.35]
[1645861661804,0.21562426,39163.0,39156.0,0.35]
[1645861662008,0.21562426,39163.0,39162.0,1.015815]
[1645861662203,0.20562426,39163.0,39162.0,0.375215]
[1645861662406,0.20562426,39163.0,39162.0,1.192455]
[1645861662602,0.20562426,39163.0,39162.0,1.15034302]
[1645861662801,0.20562426,39163.0,39162.0,0.81724]
[1645861663000,0.20562426,39163.0,39162.0,1.53023302]
[1645861663453,0.20562426,39163.0,39162.0,1.19713]
[1645861664254,0.20562426,39163.0,39162.0,0.81724]
[1645861664652,0.20562426,39163.0,39162.0,1.19713]
[1645861664853,0.20562426,39163.0,39162.0,1.5214079]
[1645861665654,0.20562426,39163.0,39162.0,1.4702079]
[1645861667798,0.17808174,39163.0,39162.0,1.6469479]
[1645861667999,0.0021,39175.0,39164.0,1.22554]
[1645861668197,0.00138789,39170.0,39166.0,0.06383949]
[1645861668397,0.00138789,39170.0,39167.0,1.5162299]
[1645861668597,0.00138789,39170.0,39167.0,1.5289979]